fUST/lending_fUST_20260531
["ID","MTS","AMOUNT","RATE_DAILY","PERIOD"]
[423560587,1780224645000,-454.41773976,0.00014932,2]
[423560582,1780224645000,-530.11752427,0.00014932,2]
[423560609,1780224645000,-163.79271474,0.00010958,2]
[423560608,1780224645000,-336.20728526,0.00010958,2]
[423560605,1780224645000,-500.0,0.0001041,2]
[423560607,1780224645000,-278.77897391,0.00010684,2]
[423560603,1780224645000,-500.0,9.863e-05,2]
[423560604,1780224645000,-500.0,0.00010136,2]
[423560606,1780224645000,-221.22102609,0.00010684,2]
[423560601,1780224645000,-983.59412008,0.00015,2]
[423560602,1780224645000,-1658.44732523,0.00015,2]
[423560600,1780224645000,-1178.98896994,0.00015,2]
[423560598,1780224645000,-531.63827506,0.00014933,2]
[423560599,1780224645000,-71274.77536379,0.00015,2]
[423560593,1780224645000,-530.16227878,0.00014933,2]
[423560594,1780224645000,-614.50109031,0.00014933,2]
[423560610,1780224645000,-257.02410766,0.00011232,2]
[423560595,1780224645000,-544.71386257,0.00014933,2]
[423560596,1780224645000,-208.93891999,0.00014933,2]
[423560583,1780224645000,-488.07403217,0.00014932,2]
[423560586,1780224645000,-550.10171798,0.00014932,2]
[423560578,1780224645000,-187.23865287,0.00014932,2]
[423560584,1780224645000,-560.38557826,0.00014932,2]
[423560580,1780224645000,-2441.27448223,0.00014932,2]
[423560588,1780224645000,-996.16404933,0.00014933,2]
[423560585,1780224645000,-155.23085692,0.00014932,2]
[423560577,1780224645000,-208.71568135,0.00014932,2]
[423560581,1780224645000,-676.16226794,0.00014932,2]
[423560590,1780224645000,-496.84377081,0.00014933,2]
[423560589,1780224645000,-227.32838121,0.00014933,2]
[423560597,1780224645000,-500.94545683,0.00014933,2]
[423560591,1780224645000,-549.56216012,0.00014933,2]
[423560592,1780224645000,-456.41489969,0.00014933,2]
[423560622,1780224646000,-242.97589234,0.00011232,2]
[423560621,1780224646000,-5000.0,9.764e-05,2]
[423560626,1780224646000,-35426.40653596,0.00015,2]
[423560625,1780224646000,-555.62,0.0001452,2]
[423560624,1780224646000,-68.09494087,0.00011506,2]
[423560623,1780224646000,-431.90505913,0.00011506,2]
[423560825,1780225832000,-8407.38058701,8.119e-05,2]
[423560818,1780225832000,-300.0,8.104e-05,2]
[423560822,1780225832000,-300.0,8.104e-05,2]
[423560821,1780225832000,-300.0,8.104e-05,2]
[423560823,1780225832000,-300.0,8.104e-05,2]
[423560824,1780225832000,-7171.64998739,8.119e-05,2]
[423560819,1780225832000,-300.0,8.104e-05,2]
[423560820,1780225832000,-300.0,8.104e-05,2]
[423560826,1780225832000,-460.74071188,8.119e-05,2]
[423560817,1780225832000,-300.0,8.104e-05,2]
[423560808,1780225832000,-5000.0,8e-05,2]
[423560815,1780225832000,-300.0,8.104e-05,2]
[423560814,1780225832000,-300.0,8.104e-05,2]
[423560812,1780225832000,-300.0,8.104e-05,2]
[423560813,1780225832000,-300.0,8.104e-05,2]
[423560811,1780225832000,-300.0,8.104e-05,2]
[423560806,1780225832000,-392.07976699,7.8e-05,2]
[423560809,1780225832000,-5000.0,8e-05,2]
[423560810,1780225832000,-300.0,8.104e-05,2]
[423560807,1780225832000,-379.0,7.999e-05,2]
[423560829,1780225832000,-1253.98230826,8.119e-05,2]
[423560816,1780225832000,-300.0,8.104e-05,2]
[423560827,1780225832000,-384.15552416,8.119e-05,2]
[423560841,1780225832000,-500.0,8.219e-05,2]
[423560831,1780225832000,-500.0,8.219e-05,2]
[423560854,1780225832000,-339.90725575,8.219e-05,2]
[423560853,1780225832000,-500.0,8.219e-05,2]
[423560838,1780225832000,-500.0,8.219e-05,2]
[423560852,1780225832000,-500.0,8.219e-05,2]
[423560848,1780225832000,-315.20887041,8.219e-05,2]
[423560850,1780225832000,-278.1,8.219e-05,2]
[423560849,1780225832000,-331.10091071,8.219e-05,2]
[423560845,1780225832000,-224.52821222,8.219e-05,2]
[423560846,1780225832000,-202.59039932,8.219e-05,2]
[423560844,1780225832000,-500.0,8.219e-05,2]
[423560851,1780225832000,-500.0,8.219e-05,2]
[423560842,1780225832000,-500.0,8.219e-05,2]
[423560843,1780225832000,-500.0,8.219e-05,2]
[423560828,1780225832000,-841.35752164,8.119e-05,2]
[423560836,1780225832000,-496.50385258,8.219e-05,2]
[423560834,1780225832000,-500.0,8.219e-05,2]
[423560830,1780225832000,-1076.5037,8.219e-05,2]
[423560832,1780225832000,-500.0,8.219e-05,2]
[423560839,1780225832000,-500.0,8.219e-05,2]
[423560840,1780225832000,-500.0,8.219e-05,2]
[423560847,1780225832000,-297.40960068,8.219e-05,2]
[423560837,1780225832000,-500.0,8.219e-05,2]
[423561079,1780225838000,-500.0,8.219e-05,2]
[423561087,1780225838000,-500.0,8.219e-05,2]
[423561104,1780225838000,-500.0,8.219e-05,2]
[423561088,1780225838000,-321.68209061,8.219e-05,2]
[423561106,1780225838000,-500.0,8.219e-05,2]
[423561085,1780225838000,-500.0,8.219e-05,2]
[423561083,1780225838000,-500.0,8.219e-05,2]
[423561071,1780225838000,-500.0,8.219e-05,2]
[423561068,1780225838000,-500.46975875,8.219e-05,2]
[423561077,1780225838000,-222.78539373,8.219e-05,2]
[423561069,1780225838000,-500.0,8.219e-05,2]
[423561066,1780225838000,-160.09274425,8.219e-05,2]
[423561081,1780225838000,-500.0,8.219e-05,2]
[423561075,1780225838000,-500.0,8.219e-05,2]
[423561064,1780225838000,-5000.0,8e-05,2]
[423561073,1780225838000,-500.0,8.219e-05,2]
[423561090,1780225838000,-505.27588705,8.219e-05,2]
[423561100,1780225838000,-505.16286931,8.219e-05,2]
[423561109,1780225838000,-500.0,8.219e-05,2]
[423561122,1780225838000,-500.0,8.219e-05,2]
[423561120,1780225838000,-500.0,8.219e-05,2]
[423561129,1780225838000,-500.0,8.219e-05,2]
[423561125,1780225838000,-500.0,8.219e-05,2]
[423561118,1780225838000,-500.0,8.219e-05,2]
[423561114,1780225838000,-500.0,8.219e-05,2]
[423561112,1780225838000,-500.0,8.219e-05,2]
[423561098,1780225838000,-500.0,8.219e-05,2]
[423561127,1780225838000,-500.0,8.219e-05,2]
[423561123,1780225838000,-500.0,8.219e-05,2]
[423561110,1780225838000,-500.0,8.219e-05,2]
[423561096,1780225838000,-500.0,8.219e-05,2]
[423561093,1780225838000,-500.0,8.219e-05,2]
[423561102,1780225838000,-222.41722046,8.219e-05,2]
[423561095,1780225838000,-500.0,8.219e-05,2]
[423561116,1780225838000,-500.0,8.219e-05,2]
[423561175,1780225839000,-500.0,8.493e-05,2]
[423561182,1780225839000,-500.0,8.493e-05,2]
[423561167,1780225839000,-500.0,8.493e-05,2]
[423561170,1780225839000,-500.0,8.493e-05,2]
[423561148,1780225839000,-500.0,8.219e-05,2]
[423561144,1780225839000,-500.0,8.219e-05,2]
[423561152,1780225839000,-500.0,8.219e-05,2]
[423561140,1780225839000,-500.0,8.219e-05,2]
[423561150,1780225839000,-500.0,8.219e-05,2]
[423561143,1780225839000,-500.0,8.219e-05,2]
[423561136,1780225839000,-500.0,8.219e-05,2]
[423561135,1780225839000,-500.0,8.219e-05,2]
[423561133,1780225839000,-500.0,8.219e-05,2]
[423561131,1780225839000,-500.0,8.219e-05,2]
[423561159,1780225839000,-1076.5037,8.493e-05,2]
[423561146,1780225839000,-500.0,8.219e-05,2]
[423561165,1780225839000,-500.0,8.493e-05,2]
[423561139,1780225839000,-500.0,8.219e-05,2]
[423561158,1780225839000,-500.0,8.219e-05,2]
[423561192,1780225839000,-500.0,8.493e-05,2]
[423561199,1780225839000,-500.0,8.493e-05,2]
[423561172,1780225839000,-500.0,8.493e-05,2]
[423561203,1780225839000,-310.86715246,8.493e-05,2]
[423561195,1780225839000,-500.0,8.493e-05,2]
[423561188,1780225839000,-500.0,8.493e-05,2]
[423561197,1780225839000,-500.0,8.493e-05,2]
[423561185,1780225839000,-500.0,8.493e-05,2]
[423561193,1780225839000,-500.0,8.493e-05,2]
[423561184,1780225839000,-500.0,8.493e-05,2]
[423561190,1780225839000,-500.0,8.493e-05,2]
[423561178,1780225839000,-500.0,8.493e-05,2]
[423561163,1780225839000,-500.0,8.493e-05,2]
[423561174,1780225839000,-500.0,8.493e-05,2]
[423561180,1780225839000,-500.0,8.493e-05,2]
[423561161,1780225839000,-500.0,8.493e-05,2]
[423561201,1780225839000,-500.0,8.493e-05,2]
[423561402,1780225841000,-500.0,8.493e-05,2]
[423561407,1780225841000,-416.51880275,8.493e-05,2]
[423561404,1780225841000,-500.74979388,8.493e-05,2]
[423561412,1780225841000,-500.0,8.493e-05,2]
[423561406,1780225841000,-500.0,8.493e-05,2]
[423561414,1780225841000,-371.15812326,8.493e-05,2]
[423561411,1780225841000,-83.48119725,8.493e-05,2]
[423561401,1780225841000,-189.13284754,8.493e-05,2]
[423561569,1780225844000,-367.88040388,8.493e-05,2]
[423561568,1780225844000,-573.14403511,8.493e-05,2]
[423561567,1780225844000,-500.0,8.493e-05,2]
[423561570,1780225844000,-500.0,8.493e-05,2]
[423561566,1780225844000,-128.84187674,8.493e-05,2]
[423561572,1780225844000,-500.0,8.493e-05,2]
[423561573,1780225844000,-500.0,8.493e-05,2]
[423561574,1780225844000,-109.913575,8.493e-05,2]
[423561571,1780225844000,-500.0,8.493e-05,2]
[423561599,1780225846000,-1076.5037,8.767e-05,2]
[423561598,1780225846000,-500.0,8.493e-05,2]
[423561601,1780225846000,-500.0,8.767e-05,2]
[423561604,1780225846000,-385.38162764,8.767e-05,2]
[423561595,1780225846000,-500.0,8.493e-05,2]
[423561609,1780225846000,-500.0,8.767e-05,2]
[423561608,1780225846000,-500.0,8.767e-05,2]
[423561606,1780225846000,-500.0,8.767e-05,2]
[423561607,1780225846000,-500.0,8.767e-05,2]
[423561596,1780225846000,-500.0,8.493e-05,2]
[423561587,1780225846000,-500.0,8.493e-05,2]
[423561590,1780225846000,-500.0,8.493e-05,2]
[423561594,1780225846000,-500.0,8.493e-05,2]
[423561588,1780225846000,-500.0,8.493e-05,2]
[423561586,1780225846000,-500.0,8.493e-05,2]
[423561592,1780225846000,-500.0,8.493e-05,2]
[423561585,1780225846000,-390.086425,8.493e-05,2]
[423561591,1780225846000,-307.2662933,8.493e-05,2]
[423561589,1780225846000,-500.0,8.493e-05,2]
[423561597,1780225846000,-500.0,8.493e-05,2]
[423561593,1780225846000,-500.0,8.493e-05,2]
[423561603,1780225846000,-114.61837236,8.767e-05,2]
[423561624,1780225846000,-500.0,8.767e-05,2]
[423561613,1780225846000,-500.0,8.767e-05,2]
[423561623,1780225846000,-500.0,8.767e-05,2]
[423561631,1780225846000,-8895.29780274,9.921e-05,2]
[423561626,1780225846000,-500.0,8.767e-05,2]
[423561628,1780225846000,-500.0,8.767e-05,2]
[423561625,1780225846000,-500.0,8.767e-05,2]
[423561629,1780225846000,-500.0,8.767e-05,2]
[423561627,1780225846000,-500.0,8.767e-05,2]
[423561630,1780225846000,-500.0,9.041e-05,2]
[423561617,1780225846000,-500.0,8.767e-05,2]
[423561620,1780225846000,-500.0,8.767e-05,2]
[423561618,1780225846000,-500.0,8.767e-05,2]
[423561621,1780225846000,-500.0,8.767e-05,2]
[423561622,1780225846000,-310.57807574,8.767e-05,2]
[423561616,1780225846000,-500.0,8.767e-05,2]
[423561615,1780225846000,-500.0,8.767e-05,2]
[423561610,1780225846000,-500.0,8.767e-05,2]
[423561611,1780225846000,-548.94,8.767e-05,2]
[423561612,1780225846000,-500.0,8.767e-05,2]
[423561614,1780225846000,-500.0,8.767e-05,2]
[423561619,1780225846000,-590.1,8.767e-05,2]
[423561605,1780225846000,-159.15083661,8.767e-05,2]
[423561635,1780226326000,357.10359144,0.00020548,120]
[423561641,1780226496000,845.49,0.00020618,60]
[423561644,1780226647000,157.91199,7.74e-05,120]
[423561703,1780227033000,-157.91199,7.74e-05,2]
[423561704,1780227033000,-378.0,7.999e-05,2]
[423561705,1780227033000,-5000.0,8e-05,2]
[423561702,1780227033000,-6218.36958488,7.6e-05,2]
[423561708,1780227034000,-419.44890811,8.491e-05,2]
[423561707,1780227034000,-500.0,8.491e-05,2]
[423561706,1780227034000,-5000.0,8e-05,2]
[423561786,1780227038000,-500.0,8.491e-05,2]
[423561788,1780227038000,-590.8,8.491e-05,2]
[423561784,1780227038000,-500.0,8.491e-05,2]
[423561780,1780227038000,-80.55109189,8.491e-05,2]
[423561782,1780227038000,-500.0,8.491e-05,2]
[423561812,1780227039000,-500.0,8.492e-05,2]
[423561810,1780227039000,-500.0,8.492e-05,2]
[423561816,1780227039000,-198.94431818,8.567e-05,2]
[423561814,1780227039000,-232.27200502,8.567e-05,2]
[423561808,1780227039000,-298.34,8.492e-05,2]
[423561806,1780227039000,-500.0,8.492e-05,2]
[423561802,1780227039000,-500.0,8.492e-05,2]
[423561800,1780227039000,-541.48,8.491e-05,2]
[423561798,1780227039000,-500.0,8.491e-05,2]
[423561796,1780227039000,-500.0,8.491e-05,2]
[423561792,1780227039000,-516.72,8.491e-05,2]
[423561790,1780227039000,-500.0,8.491e-05,2]
[423561836,1780227039000,-291.45,8.765e-05,2]
[423561804,1780227039000,-500.0,8.492e-05,2]
[423561832,1780227039000,-500.0,8.765e-05,2]
[423561794,1780227039000,-500.0,8.491e-05,2]
[423561820,1780227039000,-500.0,8.765e-05,2]
[423561859,1780227039000,-526.6061176,9.008e-05,2]
[423561861,1780227039000,-3392.36393764,9.008e-05,2]
[423561857,1780227039000,-231.7706375,9.007e-05,2]
[423561865,1780227039000,-2866.49295455,9.008e-05,2]
[423561855,1780227039000,-500.0,8.766e-05,2]
[423561853,1780227039000,-500.0,8.766e-05,2]
[423561863,1780227039000,-14554.76961443,9.008e-05,2]
[423561851,1780227039000,-500.0,8.766e-05,2]
[423561849,1780227039000,-500.0,8.766e-05,2]
[423561845,1780227039000,-500.0,8.765e-05,2]
[423561843,1780227039000,-500.0,8.765e-05,2]
[423561824,1780227039000,-500.0,8.765e-05,2]
[423561828,1780227039000,-500.0,8.765e-05,2]
[423561822,1780227039000,-500.0,8.765e-05,2]
[423561847,1780227039000,-500.0,8.766e-05,2]
[423561818,1780227039000,-500.0,8.765e-05,2]
[423562093,1780227041000,-1842.40989433,9.008e-05,2]
[423562085,1780227041000,-359.38856549,9.008e-05,2]
[423562220,1780227042000,-433.45811007,9.008e-05,2]
[423562218,1780227042000,-3611.8395338,9.008e-05,2]
[423562331,1780227044000,-628.11728746,8.765e-05,2]
[423562333,1780227044000,-597.59696633,9.008e-05,2]
[423562329,1780227044000,-500.0,8.491e-05,2]
[423562330,1780227044000,-440.14446176,9.008e-05,2]
[423562343,1780227046000,-8567.49650068,9.008e-05,2]
[423562342,1780227046000,-7408.94175514,9.008e-05,2]
[423562441,1780228239000,-2854.52146098,8e-05,2]
[423562437,1780228239000,-179.46457805,6.715e-05,2]
[423562439,1780228239000,-300.0,7.999e-05,2]
[423562440,1780228239000,-2145.47853902,8e-05,2]
[423562438,1780228239000,-225.0,7.999e-05,2]
[423562442,1780228239000,-18.88740335,8e-05,2]
[423562449,1780228239000,-500.0,8.832e-05,2]
[423562443,1780228239000,-4981.11259665,8e-05,2]
[423562446,1780228239000,-355.13200451,8.832e-05,2]
[423562447,1780228239000,-500.0,8.832e-05,2]
[423562450,1780228239000,-259.63103036,8.832e-05,2]
[423562445,1780228239000,-500.0,8.832e-05,2]
[423562444,1780228239000,-500.0,8.832e-05,2]
[423563110,1780228246000,-93.66670028,8.832e-05,2]
[423563112,1780228246000,-500.0,8.832e-05,2]
[423563109,1780228246000,-279.25755002,8.832e-05,2]
[423563111,1780228246000,-406.33329972,8.832e-05,2]
[423563116,1780228246000,-826.85920866,8.833e-05,2]
[423563114,1780228246000,-767.5604613,8.833e-05,2]
[423563113,1780228246000,-500.0,8.832e-05,2]
[423563115,1780228246000,-524.6179055,8.833e-05,2]
[423563117,1780228247000,-3594.98,8.833e-05,2]
[423563160,1780229431000,-1064.0,8e-05,2]
[423563159,1780229431000,-1262.4614113,8e-05,2]
[423563158,1780229431000,-934.03056434,8e-05,2]
[423563157,1780229431000,-586.94081868,8e-05,2]
[423563153,1780229431000,-1483.79152261,8e-05,2]
[423563151,1780229431000,-344.81,8e-05,2]
[423563235,1780229438000,-218.5272725,8.692e-05,2]
[423563237,1780229438000,-393.4634291,8.692e-05,2]
[423563239,1780229438000,-11940.81113373,8.692e-05,2]
[423563228,1780229438000,-5000.0,8e-05,2]
[423563230,1780229438000,-279.4544048,8.692e-05,2]
[423563232,1780229438000,-575.670346,8.692e-05,2]
[423563226,1780229438000,-2673.5385887,8e-05,2]
[423563817,1780229443000,-883.33,8.692e-05,2]
[423563867,1780229446000,-1000.0,8.692e-05,2]
[423563873,1780230137000,1385.90774,0.00020618,120]
[423563916,1780230632000,-300.0,7.999e-05,2]
[423563922,1780230632000,-500.0,8.579e-05,2]
[423563928,1780230632000,-2739.81803199,8.58e-05,2]
[423563920,1780230632000,-5000.0,8e-05,2]
[423563918,1780230632000,-5000.0,8e-05,2]
[423563924,1780230632000,-500.0,8.579e-05,2]
[423563927,1780230632000,-431.7527595,8.58e-05,2]
[423563926,1780230632000,-209.5908036,8.58e-05,2]
[423563929,1780230632000,-2575.47473491,8.58e-05,2]
[423563925,1780230632000,-504.82266158,8.579e-05,2]
[423563992,1780230638000,-500.0,8.689e-05,2]
[423563991,1780230638000,-500.0,8.689e-05,2]
[423563989,1780230638000,-530.00302492,8.689e-05,2]
[423564000,1780230638000,-159.13150085,8.69e-05,2]
[423563993,1780230638000,-500.0,8.69e-05,2]
[423563994,1780230638000,-500.0,8.69e-05,2]
[423564006,1780230638000,-605.21473667,8.833e-05,2]
[423563998,1780230638000,-500.0,8.69e-05,2]
[423563996,1780230638000,-500.0,8.69e-05,2]
[423563997,1780230638000,-500.0,8.69e-05,2]
[423563999,1780230638000,-432.90073873,8.69e-05,2]
[423564001,1780230638000,-340.86849915,8.69e-05,2]
[423564002,1780230638000,-500.0,8.69e-05,2]
[423563990,1780230638000,-500.0,8.689e-05,2]
[423563995,1780230638000,-500.0,8.69e-05,2]
[423563988,1780230638000,-500.0,8.689e-05,2]
[423563982,1780230638000,-614.46288908,8.688e-05,2]
[423563978,1780230638000,-500.0,8.688e-05,2]
[423563961,1780230638000,-5000.0,8.494e-05,2]
[423563965,1780230638000,-295.0975718,8.58e-05,2]
[423563964,1780230638000,-24103.3107567,8.58e-05,2]
[423563968,1780230638000,-500.0,8.688e-05,2]
[423563981,1780230638000,-500.0,8.688e-05,2]
[423563974,1780230638000,-500.0,8.688e-05,2]
[423563979,1780230638000,-500.0,8.688e-05,2]
[423563984,1780230638000,-500.0,8.688e-05,2]
[423563971,1780230638000,-500.0,8.688e-05,2]
[423564010,1780230638000,-152.0,8.922e-05,2]
[423563976,1780230638000,-609.913575,8.688e-05,2]
[423563983,1780230638000,-500.0,8.688e-05,2]
[423563970,1780230638000,-500.0,8.688e-05,2]
[423563986,1780230638000,-500.0,8.688e-05,2]
[423563985,1780230638000,-500.0,8.688e-05,2]
[423564008,1780230638000,-670.95765001,8.833e-05,2]
[423564040,1780230638000,-151.0,9.352e-05,2]
[423564003,1780230638000,-500.0,8.69e-05,2]
[423564022,1780230638000,-500.0,8.964e-05,2]
[423564033,1780230638000,-500.0,9.238e-05,2]
[423564032,1780230638000,-529.14,9.238e-05,2]
[423564029,1780230638000,-500.0,9.237e-05,2]
[423564038,1780230638000,-151.0,9.352e-05,2]
[423564034,1780230638000,-151.0,9.352e-05,2]
[423564018,1780230638000,-500.0,8.963e-05,2]
[423564039,1780230638000,-151.0,9.352e-05,2]
[423564036,1780230638000,-25.79267816,9.352e-05,2]
[423564009,1780230638000,-379.95734357,8.833e-05,2]
[423564035,1780230638000,-125.20732184,9.352e-05,2]
[423564031,1780230638000,-535.2,9.238e-05,2]
[423564037,1780230638000,-151.0,9.352e-05,2]
[423564041,1780230638000,-76.62094215,9.352e-05,2]
[423564028,1780230638000,-500.0,9.236e-05,2]
[423564027,1780230638000,-500.0,9.236e-05,2]
[423564030,1780230638000,-500.0,9.237e-05,2]
[423564019,1780230638000,-500.0,8.963e-05,2]
[423564023,1780230638000,-204.58,8.964e-05,2]
[423564012,1780230638000,-152.0,8.936e-05,2]
[423564005,1780230638000,-151.45513931,8.833e-05,2]
[423564007,1780230638000,-167.90731982,8.833e-05,2]
[423564011,1780230638000,-152.0,8.922e-05,2]
[423564013,1780230638000,-152.0,8.936e-05,2]
[423564014,1780230638000,-500.0,8.962e-05,2]
[423564004,1780230638000,-229.1315293,8.732e-05,2]
[423564017,1780230638000,-287.0,8.962e-05,2]
[423564024,1780230638000,-500.0,8.964e-05,2]
[423564025,1780230638000,-500.0,8.964e-05,2]
[423564026,1780230638000,-1522.4134126,9.123e-05,2]
[423564016,1780230638000,-500.0,8.962e-05,2]
[423564020,1780230638000,-500.0,8.964e-05,2]
[423564015,1780230638000,-500.0,8.962e-05,2]
[423564021,1780230638000,-248.53483167,8.964e-05,2]
[423564072,1780230644000,-500.0,9.51e-05,2]
[423564074,1780230644000,-500.0,9.511e-05,2]
[423564078,1780230644000,-575.86903964,9.921e-05,2]
[423564073,1780230644000,-500.0,9.51e-05,2]
[423564080,1780230644000,-1419.87850433,9.945e-05,2]
[423564077,1780230644000,-500.0,9.786e-05,2]
[423564076,1780230644000,-500.0,9.785e-05,2]
[423564079,1780230644000,-355.32495103,9.945e-05,2]
[423564069,1780230644000,-151.0,9.352e-05,2]
[423564075,1780230644000,-500.0,9.512e-05,2]
[423564070,1780230644000,-196.96962186,9.352e-05,2]
[423564065,1780230644000,-151.0,9.352e-05,2]
[423564068,1780230644000,-151.0,9.352e-05,2]
[423564067,1780230644000,-151.0,9.352e-05,2]
[423564062,1780230644000,-151.0,9.352e-05,2]
[423564066,1780230644000,-151.0,9.352e-05,2]
[423564060,1780230644000,-74.37905785,9.352e-05,2]
[423564064,1780230644000,-151.0,9.352e-05,2]
[423564063,1780230644000,-151.0,9.352e-05,2]
[423564061,1780230644000,-151.0,9.352e-05,2]
[423564059,1780230644000,-152.0,8.765e-05,2]
[423564095,1780230644000,-185.98023351,0.000102,2]
[423564071,1780230644000,-795.0,9.5e-05,2]
[423564083,1780230644000,-500.0,0.00010059,2]
[423564093,1780230644000,-3364.70300086,0.000101,2]
[423564109,1780230644000,-500.0,0.00010958,2]
[423564087,1780230644000,-767.37531181,0.00010071,2]
[423564107,1780230644000,-3364.70300086,0.000108,2]
[423564105,1780230644000,-500.0,0.00010607,2]
[423564110,1780230644000,-8504.97369117,0.00010959,2]
[423564100,1780230644000,-500.0,0.00010333,2]
[423564106,1780230644000,-3364.70300086,0.000107,2]
[423564099,1780230644000,-3364.70300086,0.000103,2]
[423564108,1780230644000,-500.0,0.00010881,2]
[423564101,1780230644000,-162.30333737,0.000104,2]
[423564104,1780230644000,-3364.70300086,0.000106,2]
[423564103,1780230644000,-3364.70300086,0.000105,2]
[423564102,1780230644000,-3364.70300086,0.000104,2]
[423564097,1780230644000,-162.30333737,0.000103,2]
[423564091,1780230644000,-162.30333737,0.000101,2]
[423564089,1780230644000,-160.0,0.00010071,2]
[423564090,1780230644000,-160.0,0.00010071,2]
[423564094,1780230644000,-162.30333737,0.000102,2]
[423564085,1780230644000,-500.38118387,0.0001006,2]
[423564088,1780230644000,-160.0,0.00010071,2]
[423564096,1780230644000,-3364.70300086,0.000102,2]
[423564081,1780230644000,-593.64563569,9.945e-05,2]
[423564086,1780230644000,-160.0,0.00010071,2]
[423564092,1780230644000,-185.98023351,0.000101,2]
[423564098,1780230644000,-185.98023351,0.000103,2]
[423564131,1780230646000,-5500.0,0.00010959,2]
[423564130,1780230646000,-927.19930424,0.00010959,2]
[423564132,1780230646000,-67.82700449,0.00010959,2]
[423564133,1780230646000,-1650.0,0.00010959,2]
[423564135,1780230646000,-253.7425319,0.00010976,2]
[423564134,1780230646000,-1108.37028638,0.00010976,2]
[423564136,1780230852000,99740.2554345,0.00020619,60]
[423564141,1780231219000,442.500002,0.0002061,120]
[423564164,1780231631000,-361.538987,9.181e-05,2]
[423564162,1780231631000,-361.538987,9.181e-05,2]
[423564158,1780231631000,-361.538987,9.181e-05,2]
[423564157,1780231631000,-361.538987,9.181e-05,2]
[423564160,1780231631000,-361.538987,9.181e-05,2]
[423564156,1780231631000,-361.538987,9.181e-05,2]
[423564159,1780231631000,-361.538987,9.181e-05,2]
[423564161,1780231631000,-361.538987,9.181e-05,2]
[423564163,1780231631000,-361.538987,9.181e-05,2]
[423564154,1780231631000,-160.39207051,9.18e-05,2]
[423564150,1780231631000,-9521.35273702,9.081e-05,2]
[423564155,1780231631000,-361.538987,9.181e-05,2]
[423564153,1780231631000,-500.0,9.18e-05,2]
[423564151,1780231631000,-500.0,9.18e-05,2]
[423564149,1780231631000,-500.0,9.08e-05,2]
[423564147,1780231631000,-152.0,8.761e-05,2]
[423564148,1780231631000,-500.0,9.08e-05,2]
[423564146,1780231631000,-5000.0,8e-05,2]
[423564145,1780231631000,-5000.0,8e-05,2]
[423564167,1780231631000,-361.538987,9.181e-05,2]
[423564152,1780231631000,-500.0,9.18e-05,2]
[423564165,1780231631000,-361.538987,9.181e-05,2]
[423564172,1780231631000,-361.538987,9.181e-05,2]
[423564168,1780231631000,-361.538987,9.181e-05,2]
[423564166,1780231631000,-361.538987,9.181e-05,2]
[423564190,1780231631000,-361.538987,9.181e-05,2]
[423564189,1780231631000,-361.538987,9.181e-05,2]
[423564188,1780231631000,-361.538987,9.181e-05,2]
[423564186,1780231631000,-361.538987,9.181e-05,2]
[423564184,1780231631000,-361.538987,9.181e-05,2]
[423564187,1780231631000,-361.538987,9.181e-05,2]
[423564185,1780231631000,-361.538987,9.181e-05,2]
[423564182,1780231631000,-361.538987,9.181e-05,2]
[423564180,1780231631000,-361.538987,9.181e-05,2]
[423564181,1780231631000,-361.538987,9.181e-05,2]
[423564183,1780231631000,-361.538987,9.181e-05,2]
[423564177,1780231631000,-361.538987,9.181e-05,2]
[423564178,1780231631000,-361.538987,9.181e-05,2]
[423564176,1780231631000,-361.538987,9.181e-05,2]
[423564175,1780231631000,-361.538987,9.181e-05,2]
[423564174,1780231631000,-361.538987,9.181e-05,2]
[423564173,1780231631000,-361.538987,9.181e-05,2]
[423564171,1780231631000,-361.538987,9.181e-05,2]
[423564169,1780231631000,-361.538987,9.181e-05,2]
[423564179,1780231631000,-361.538987,9.181e-05,2]
[423564170,1780231631000,-361.538987,9.181e-05,2]
[423564206,1780231632000,-361.538987,9.181e-05,2]